{"text_format":"1","workbook":"xlsx","n_sheets":3,"sheets":["Invoice","Div-28","Calcs"],"not_rendered":{"charts":0,"images":1,"macros":1,"external_links":0,"defined_names":8,"comments":0,"pivot_tables":0},"unopened":[],"bounds":{"document_bytes":16777216,"sheet_cells":100000,"rows_first":2000,"rows_last":500,"rows_between":2000,"halvings":0,"cell_chars":16384,"cell_head_chars":4096},"cells_cut":0,"cells_raw":0,"read":"whole","date_system":"1900"}

{"sheet":"Invoice","index":0,"n_rows":69,"n_cols":14,"rows_kept":69,"cut":false,"hidden":false,"merged":[[50,0,50,2],[65,4,65,10],[62,3,62,6],[64,4,64,10],[62,7,62,10],[47,9,47,10],[48,9,52,10],[48,11,48,12],[47,11,47,12],[63,3,63,10],[53,5,54,5],[53,6,54,8],[48,6,49,8],[51,6,52,8],[50,11,50,12],[50,3,50,4],[61,0,61,2],[51,5,52,5],[55,0,56,2],[55,3,56,4],[55,5,56,5],[53,0,54,2],[61,3,61,6],[54,9,56,10],[53,9,53,10],[55,6,56,8],[60,0,60,2],[51,11,51,12],[52,11,52,12],[51,3,52,4],[60,3,60,11],[56,11,56,12],[61,7,61,10],[61,12,62,13],[61,11,62,11],[51,0,52,2],[53,3,54,4],[48,0,49,2],[48,3,49,4],[48,5,49,5],[12,0,12,1],[13,2,13,3],[12,4,12,5],[13,4,13,5],[13,0,13,1],[39,2,39,10],[32,2,32,10],[31,2,31,10],[27,2,27,10],[26,2,26,10],[28,2,28,10],[37,2,37,10],[38,2,38,10],[13,6,13,8],[36,2,36,10],[34,2,34,10],[18,2,18,3],[19,7,19,8],[35,2,35,10],[33,2,33,10],[12,2,12,3],[0,12,1,13],[1,4,1,11],[2,4,2,11],[3,4,3,11],[0,4,0,11],[7,1,7,8],[7,10,7,13],[4,4,4,11],[11,12,11,13],[8,10,8,13],[9,10,9,13],[10,10,10,13],[10,1,10,8],[8,1,8,8],[6,9,11,9],[6,0,11,0],[12,6,12,8],[9,1,9,8],[14,0,14,1],[15,4,15,5],[24,2,24,10],[19,2,19,3],[16,4,16,5],[15,6,15,8],[15,2,15,3],[20,7,20,10],[20,2,20,6],[23,2,23,10],[14,4,14,5],[14,2,14,3],[17,7,17,8],[18,7,18,8],[22,2,22,10],[16,6,16,10],[21,2,21,10],[16,2,16,3],[14,7,14,8],[15,0,15,1],[16,0,16,1],[29,2,29,10],[30,2,30,10],[25,2,25,10],[17,2,17,3],[46,0,46,10],[47,3,47,4],[47,6,47,8],[45,2,45,10],[42,2,42,10],[40,2,40,10],[44,2,44,10],[43,2,43,10],[41,2,41,10]]}
[null,null,null,null,"Fire Suppression Services, Inc.",null,null,null,null,null,null,null,"INVOICE"]
[null,null,null,null,"3802 South 2300 East"]
[null,null,null,null,"Millcreek, Utah  84109-3421",null,null,null,null,null,null,null,{"$f":"IF(G14=\"Zach\",\"Z\",IF(G14=\"Arun\",\"A\",(IF(G14=\"Bard\",\"B\",(IF(G14=\"Mike Kimball\",\"K\",(IF(G14=\"Bill\",\"G\",\"\"))))))))","v":"A"},"21###"]
[null,null,null,null,"Contractor License No. 92-252208-5501"]
[null,null,null,null,"801.277.6464  •  800.273.6465  •  801.278.2199 - FAX",null,null,null,null,null,null,null,"DATE",{"$f":"NOW()","v":"2020-12-15T15:01:36.660"}]
[]
["BILLING",null,null,null,null,null,null,null,null,"JOB SITE"]
[null,"Utah Milestone Projects",null,null,null,null,null,null,null,null,"La Caille"]
[null,"David E. Kavanagh",null,null,null,null,null,null,null,null,"9565 South Wasatch Blvd"]
[null,"1883 E 9400 S",null,null,null,null,null,null,null,null,"Sandy City. UT 84092-6009"]
[null,"Sandy UT 84093",null,null,null,null,null,null,null,null,""]
[null,null,null,null,null,null,null,null,null,null,null,"TANK","CARTRIDGE"]
[null,null,"Billing",null,"Job Site",null,"SALESPERSON",null,null,true,null,"DATE","TYPE","DATE"]
["CONTACT",null,null,null,"",null,"Arun",null,null,true]
["OFFICE",null,null,null,"",null,{"$f":"IF(OR(G14=\"Zach\",G14=\"Kimball\"),\"AE#\",IF(G14=\"Arun\",\"\",(IF(OR(G14=\"Bard\",G14=\"Bill\"),\"HE#\",IF(G14=\"Heath\",\"L3\",\"\")))))","v":""},{"$f":"IF(G14=\"Zach\",\"455\",IF(G14=\"Arun\",\"\",IF(G14=\"Bard\",\"48\",IF(G14=\"Kimball\",\"11131\",IF(G14=\"Bill\",\"13\",IF(G14=\"Heath\",\"61931\",\"\"))))))","v":""},null,false]
["CELL",null,null,null,null,null,"Bill to:  eMail",null,null,false]
[null,null,null,null,null,null,"dek@utahmilestones.com; julie@utahmilestones.com"]
[null,false,null,null,false,null,false,null,null,true,null,"Mileage One-Way","","TIME"]
[null,true,null,null,false,null,false,null,null,false,null,"Drive Time One-Way","0 H 00 Min","00:00:00"]
[null,false,null,null,false,null,false," EMERGENCY",null,false,null,"UNIT PRICE","NON TAX","TAXABLE"]
["T",null,null,null,null,null,null,{"$f":"+N5","v":"2020-12-15T15:01:36.660"}]
[":::",null,"Phase-I Preliminaries for Phase II remodel of existing Patio area",null,null,null,null,null,null,null,null,null,{"$f":"+IF(A22=\"\",B22*L22,0)","v":0},{"$f":"+IF(A22=\"T\",B22*L22,\"\")","v":""}]
[null,1,"Design, Submittals",null,null,null,null,null,null,null,null,2300,{"$f":"+IF(A23=\"\",B23*L23,0)","v":2300},{"$f":"+IF(A23=\"T\",B23*L23,\"\")","v":""}]
[null,1,"Flow tests & Hydraulic Calculations",null,null,null,null,null,null,null,null,385,385,""]
[null,1,"3rd-Party review & Permit",null,null,null,null,null,null,null,null,350,350,""]
[null,2,"Site visits with Morgan Baker Nov-11",null,null,null,null,null,null,null,null,165,330,""]
[null,1,"Site visits with Sandy City AHJ for Flow Nov-24",null,null,null,null,null,null,null,null,165,165,""]
[null,null,null,null,null,null,null,null,null,null,null,null,0,""]
[null,null,null,null,null,null,null,null,null,null,null,null,0,""]
[null,null,null,null,null,null,null,null,null,null,null,null,0,""]
[null,null,null,null,null,null,null,null,null,null,null,null,0,""]
[null,null,null,null,null,null,null,null,null,null,null,null,0,""]
[null,null,null,null,null,null,null,null,null,null,null,null,0,""]
[null,null,null,null,null,null,null,null,null,null,null,null,0,""]
[null,null,null,null,null,null,null,null,null,null,null,null,0,""]
[null,null,null,null,null,null,null,null,null,null,null,null,0,""]
[null,null,null,null,null,null,null,null,null,null,null,null,0,""]
[null,null,null,null,null,null,null,null,null,null,null,null,0,""]
[null,null,null,null,null,null,null,null,null,null,null,null,0,""]
[null,null,null,null,null,null,null,null,null,null,null,null,0,""]
[null,null,null,null,null,null,null,null,null,null,null,null,0,""]
[null,null,null,null,null,null,null,null,null,null,null,null,0,""]
[null,null,null,null,null,null,null,null,null,null,null,null,{"$f":"+IF(A43=\"\",B43*L43,0)","v":0},""]
[null,null,null,null,null,null,null,null,null,null,null,null,{"$f":"+IF(A44=\"\",B44*L44,0)","v":0},""]
[false,null,"Compliance reporting fee: ",null,null,null,null,null,null,null,null,30,{"$f":"+IF(A45=TRUE,B45*L45,0)","v":0}]
[null,null,null,null,null,null,null,null,null,null,null,null,{"$f":"+IF(A46=\"\",B46*L46,0)","v":0},""]
[null,null,null,null,null,null,null,null,null,null,null,"SUBTOTALS:",{"$f":"SUM(M21:M46)","v":3530},{"$f":"SUM(N21:N46)","v":0}]
[null,null,null,"DUE WHEN",null,"LAST COMPANY","NUMBER ON PROPERTY",null,null,"CODE",null,"Non-Taxable Total",null,{"$f":"+M47","v":3530}]
["EXTINGUISHER",null,null,null,null,null,null,null,null,null,null,"Taxable Sales",null,{"$f":"+N47","v":0}]
[null,null,null,null,null,null,null,null,null,null,null,true,"Sales Tax",{"$f":"IF(L50=TRUE,+(N47*rngTaxMillcreek),0)","v":0}]
["Alarms",null,null,null,null,null,null,null,null,null,null,null,null,0]
["EM / EX LIGHTING",null,null,null,null,null,null,null,null,null,null,null,null,0]
[null,null,null,null,null,null,null,null,null,null,null,"8% MISC Materials, Insurance",null,{"$f":"(+M47+N47)*8%","v":282.40000000000003}]
["HOOD CLEANING",null,null,null,null,null,null,null,null,"REFILE",null,false,"Truck Charge",{"$f":"IF(L54=TRUE,35,0)","v":0}]
[null,null,null,null,null,null,null,null,null,"None",null,false,"Freight",{"$f":"IF(L55=TRUE,rngFreight*(M47+N47),0)","v":0}]
["RISER",null,null,null,null,null,null,null,null,null,null,true,"Handling",{"$f":"IF(L56=TRUE,rngFreight*(M47+N47),0)","v":35.300000000000004}]
[null,null,null,null,null,null,null,null,null,null,null,"HAZ-MAT Disposal"]
["I, RECEIPT OF COPY: CUSTOMER ACKNOWLEDGES RECEIPT OF COPY AND THAT HE UNDERSTANDS ALL OF THIS AGREEMENT AND PARTICULARLY PARAGRAPHS 1,2,3,4 AND 5 ON THE REVERSE "]
["WHICH SETS FORTH COMPANY'S MAXIMUM LIABILITY.  THE SYSTEM'S HAVE BEEN SERVICED  IN ACCORDANCE WITH NATIONAL FIRE PROTECTION STANDARDS AND CODES OR CURRENT MFG."]
["SERVICE REQUIREMENTS AND DOES NOT CERTIFY THE DESIGN AND / OR THE INSTALLATION CRITERIA."]
[]
["Net 15 Days",null,null,"WORK AUTHORIZATION NUMBER",null,null,null,33171,null,null,null,{"$f":"IF(M1=\"INVOICE\",\"TOTAL DUE\",\"Estimated at:\")","v":"TOTAL DUE"},{"$f":"SUM(N48:N50)+SUM(N52:N57)","v":3847.7}]
[null,null,null,"PURCHASE / WORK  ORDER NUMBER",null,null,null,"dek"]
["  Cash",null,null,"RECEIVED IN GOOD ORDER  AND ACCEPTED",null,null,null,null,null,null,null,"TIMES ARE CORRECT AND JOB COMPLETED SATISFACTORILY "]
["  Check",null,null,"BY X",null,null,null,null,null,null,null,"CLAIMS WILL NOT BE HONORED AFTER TEN (10) DAYS FROM DATE"]
["   Credit card",null,null,null,"BUYER SHALL PAY SELLER FOR THIS PURCHASE",null,null,null,null,null,null,"OF SERVICE."]
["INTEREST & COLLECTION FEES WILL BE CHARGED ON  OVERDUE ACCOUNTS.",null,null,null,null,null,null,"3% PER MONTH",null,null,"MINIMUM BILLING OF $45.00"]
[]
["Rev: 2019-08-30    22:43",null,null,null,null,{"$f":"IF(M1=\"INVOICE\",\"THIS INVOICE  IS  ALSO YOUR STATEMENT\",\"Quote/Estimate ONLY\")","v":"THIS INVOICE  IS  ALSO YOUR STATEMENT"},null,null,null,null,null,null,null,"THANK YOU"]

{"sheet":"Div-28","index":1,"n_rows":69,"n_cols":14,"rows_kept":69,"cut":false,"hidden":false,"merged":[[0,4,0,11],[0,12,1,13],[1,4,1,11],[2,4,2,11],[3,4,3,11],[4,4,4,11],[11,12,11,13],[12,0,12,1],[12,2,12,3],[12,4,12,5],[12,6,12,8],[13,0,13,1],[13,2,13,3],[13,4,13,5],[13,6,13,8],[6,0,11,0],[6,9,11,9],[7,1,7,8],[7,10,7,13],[8,1,8,8],[8,10,8,13],[9,1,9,8],[9,10,9,13],[10,1,10,8],[10,10,10,13],[16,0,16,1],[16,2,16,3],[16,4,16,5],[16,6,16,10],[17,2,17,3],[17,7,17,8],[14,0,14,1],[14,2,14,3],[14,4,14,5],[14,7,14,8],[15,0,15,1],[15,2,15,3],[15,4,15,5],[15,6,15,8],[21,2,21,10],[22,2,22,10],[23,2,23,10],[24,2,24,10],[25,2,25,10],[26,2,26,10],[18,2,18,3],[18,7,18,8],[19,2,19,3],[19,7,19,8],[20,2,20,6],[20,7,20,10],[33,2,33,10],[34,2,34,10],[35,2,35,10],[36,2,36,10],[37,2,37,10],[38,2,38,10],[27,2,27,10],[28,2,28,10],[29,2,29,10],[30,2,30,10],[31,2,31,10],[32,2,32,10],[45,2,45,10],[46,0,46,10],[47,3,47,4],[47,6,47,8],[47,9,47,10],[47,11,47,12],[39,2,39,10],[40,2,40,10],[41,2,41,10],[42,2,42,10],[43,2,43,10],[44,2,44,10],[48,0,49,2],[48,3,49,4],[48,5,49,5],[48,6,49,8],[48,9,52,10],[48,11,48,12],[50,0,50,2],[50,3,50,4],[50,11,50,12],[51,0,52,2],[51,3,52,4],[51,5,52,5],[51,6,52,8],[51,11,51,12],[52,11,52,12],[53,0,54,2],[53,3,54,4],[53,5,54,5],[53,6,54,8],[53,9,53,10],[54,9,56,10],[55,0,56,2],[55,3,56,4],[55,5,56,5],[55,6,56,8],[56,11,56,12],[61,12,62,13],[62,3,62,6],[62,7,62,10],[63,3,63,10],[64,4,64,10],[65,4,65,10],[60,0,60,2],[60,3,60,11],[61,0,61,2],[61,3,61,6],[61,7,61,10],[61,11,62,11]]}
[null,null,null,null,"Fire Suppression Services, Inc.",null,null,null,null,null,null,null,"Quote"]
[null,null,null,null,"3802 South 2300 East"]
[null,null,null,null,"Millcreek, Utah  84109-3421",null,null,null,null,null,null,null,{"$f":"IF(G14=\"Zach\",\"Z\",IF(G14=\"Arun\",\"A\",(IF(G14=\"Bard\",\"B\",(IF(G14=\"Mike Kimball\",\"K\",(IF(G14=\"Bill\",\"G\",\"\"))))))))","v":"Z"},"21###"]
[null,null,null,null,"Contractor License No. 92-252208-5501"]
[null,null,null,null,"801.277.6464  •  800.273.6465  •  801.278.2199 - FAX",null,null,null,null,null,null,null,"DATE",{"$f":"NOW()","v":"2020-12-15T15:01:36.660"}]
[]
["BILLING",null,null,null,null,null,null,null,null,"JOB SITE"]
[null,"Company name"]
[null,"Person Name"]
[null,"123 West 1000 South"]
[null,"SLC UT 84000",null,null,null,null,null,null,null,null,""]
[null,null,null,null,null,null,null,null,null,null,null,"PANEL","BATTERIES"]
[null,null,"Billing",null,"Job Site",null,"SALESPERSON",null,null,4,"Annual","DATE","TYPE","DATE"]
["CONTACT",null,null,null,"",null,"Zach",null,null,6,"Semi-Annual"]
["OFFICE",null,null,null,"",null,{"$f":"IF(OR(G14=\"Zach\",G14=\"Kimball\"),\"AE#\",IF(G14=\"Arun\",\"\",(IF(OR(G14=\"Bard\",G14=\"Bill\"),\"HE#\",IF(G14=\"Heath\",\"L3\",\"\")))))","v":"AE#"},{"$f":"IF(G14=\"Zach\",\"455\",IF(G14=\"Arun\",\"\",IF(G14=\"Bard\",\"48\",IF(G14=\"Kimball\",\"11131\",IF(G14=\"Bill\",\"13\",IF(G14=\"Heath\",\"61931\",\"\"))))))","v":"455"},null,2,"Quarterly"]
["CELL",null,null,null,null,null,"Bill to:  eMail",null,null,false,"Monthly"]
[null,null,null,null,null,null,""]
[null,false,null,null,false,null,false,null,null,false,null,"Mileage One-Way","","TIME"]
[null,false,null,null,false,null,false,null,null,false,null,"Drive Time One-Way","0 H 00 Min","00:00:00"]
[null,false,null,null,false,null,false,"EMERGENCY",null,false,null,"UNIT PRICE","NON TAX","TAXABLE"]
["T",null,null,null,null,null,null,{"$f":"+N5","v":"2020-12-15T15:01:36.660"}]
[":::",null,null,null,null,null,null,null,null,null,null,null,{"$f":"+IF(A22=\"\",B22*L22,0)","v":0},{"$f":"+IF(A22=\"T\",B22*L22,\"\")","v":""}]
[null,null,null,null,null,null,null,null,null,null,null,null,{"$f":"+IF(A23=\"\",B23*L23,0)","v":0},{"$f":"+IF(A23=\"T\",B23*L23,\"\")","v":""}]
[null,null,null,null,null,null,null,null,null,null,null,null,0,""]
[null,null,null,null,null,null,null,null,null,null,null,null,0,""]
[null,null,null,null,null,null,null,null,null,null,null,null,0,""]
[null,null,null,null,null,null,null,null,null,null,null,null,0,""]
[null,null,null,null,null,null,null,null,null,null,null,null,0,""]
[null,null,null,null,null,null,null,null,null,null,null,null,0,""]
[null,null,null,null,null,null,null,null,null,null,null,null,0,""]
[null,null,null,null,null,null,null,null,null,null,null,null,0,""]
[null,null,null,null,null,null,null,null,null,null,null,null,0,""]
[null,null,null,null,null,null,null,null,null,null,null,null,0,""]
[null,null,null,null,null,null,null,null,null,null,null,null,0,""]
[null,null,null,null,null,null,null,null,null,null,null,null,0,""]
[null,null,null,null,null,null,null,null,null,null,null,null,0,""]
[null,null,null,null,null,null,null,null,null,null,null,null,0,""]
[null,null,null,null,null,null,null,null,null,null,null,null,0,""]
[null,null,null,null,null,null,null,null,null,null,null,null,0,""]
[null,null,null,null,null,null,null,null,null,null,null,null,0,""]
[null,null,null,null,null,null,null,null,null,null,null,null,0,""]
[null,null,null,null,null,null,null,null,null,null,null,null,0,""]
[null,null,null,null,null,null,null,null,null,null,null,null,0,""]
[null,null,null,null,null,null,null,null,null,null,null,null,0,""]
[true,1,"Compliance reporting fee: ",null,null,null,null,null,null,null,null,50,{"$f":"+IF(A45=TRUE,B45*L45,0)","v":50}]
[null,null,null,null,null,null,null,null,null,null,null,null,{"$f":"+IF(A46=\"\",B46*L46,\"\")","v":0},""]
[null,null,null,null,null,null,null,null,null,null,null,"SUBTOTALS:",{"$f":"SUM(M21:M46)","v":50},{"$f":"SUM(N21:N46)","v":0}]
[null,null,null,"DUE WHEN",null,"LAST COMPANY","NUMBER ON PROPERTY",null,null,"CODE",null,"Non-Taxable Total",null,{"$f":"+M47","v":50}]
["EXTINGUISHER",null,null,null,null,null,null,null,null,null,null,"Taxable Sales",null,{"$f":"+N47","v":0}]
[null,null,null,null,null,null,null,null,null,null,null,true,"Sales Tax",{"$f":"IF(L50=TRUE,+(N47*rngTaxMillcreek),0)","v":0}]
["Alarms",null,null,null,null,null,null,null,null,null,null,null,null,0]
["EM / EX LIGHTING",null,null,null,null,null,null,null,null,null,null,null,null,0]
[null,null,null,null,null,null,null,null,null,null,null,"8% MISC Materials, Insurance",null,{"$f":"(+M47+N47)*8%","v":4}]
["HOOD CLEANING",null,null,null,null,null,null,null,null,"REFILE",null,false,"Truck Charge",{"$f":"IF(L54=TRUE,35,0)","v":0}]
[null,null,null,null,null,null,null,null,null,{"$f":"IF(E20=TRUE,IF(J15=4,+N5+330,0))","v":false},null,false,"Freight",{"$f":"IF(L55=TRUE,rngFreight*(M47+N47),0)","v":0}]
["RISER",null,null,null,null,null,null,null,null,null,null,false,"Handling",{"$f":"IF(L56=TRUE,rngFreight*(M47+N47),0)","v":0}]
[null,null,null,null,null,null,null,null,null,null,null,"HAZ-MAT Disposal",null,{"$f":"(+M47+N47)*7%","v":3.5000000000000004}]
["I, RECEIPT OF COPY: CUSTOMER ACKNOWLEDGES RECEIPT OF COPY AND THAT HE UNDERSTANDS ALL OF THIS AGREEMENT AND PARTICULARLY PARAGRAPHS 1,2,3,4 AND 5 ON THE REVERSE "]
["WHICH SETS FORTH COMPANY'S MAXIMUM LIABILITY.  THE SYSTEM'S HAVE BEEN SERVICED  IN ACCORDANCE WITH NATIONAL FIRE PROTECTION STANDARDS AND CODES OR CURRENT MFG."]
["SERVICE REQUIREMENTS AND DOES NOT CERTIFY THE DESIGN AND / OR THE INSTALLATION CRITERIA."]
[]
["Net 15 Days",null,null,"WORK AUTHORIZATION NUMBER",null,null,null,null,null,null,null,{"$f":"IF(M1=\"INVOICE\",\"TOTAL DUE\",\"Estimated at:\")","v":"Estimated at:"},{"$f":"SUM(N48:N50)+SUM(N52:N57)","v":57.5}]
[null,null,null,"PURCHASE / WORK  ORDER NUMBER",null,null,null,"# "]
["  Cash",null,null,"RECEIVED IN GOOD ORDER  AND ACCEPTED",null,null,null,null,null,null,null,"TIMES ARE CORRECT AND JOB COMPLETED SATISFACTORILY "]
["  Check",null,null,"BY X",null,null,null,null,null,null,null,"CLAIMS WILL NOT BE HONORED AFTER TEN (10) DAYS FROM DATE"]
["   Credit card",null,null,null,"BUYER SHALL PAY SELLER FOR THIS PURCHASE",null,null,null,null,null,null,"OF SERVICE."]
["INTEREST & COLLECTION FEES WILL BE CHARGED ON  OVERDUE ACCOUNTS.",null,null,null,null,null,null,"3% PER MONTH",null,null,"MINIMUM BILLING OF $45.00"]
[]
["Rev: 2019-08-30    22:43",null,null,null,null,{"$f":"IF(M1=\"INVOICE\",\"THIS INVOICE  IS  ALSO YOUR STATEMENT\",\"Quote/Estimate ONLY\")","v":"Quote/Estimate ONLY"},null,null,null,null,null,null,null,"THANK YOU"]

{"sheet":"Calcs","index":2,"n_rows":28,"n_cols":13,"rows_kept":28,"cut":false,"hidden":false,"merged":[]}
[]
[]
[null,null,"rngTechList"]
[null,null,null,"TechList"]
[null,null,null,"Adam"]
[null,null,null,"Arun"]
[null,null,null,"Bard"]
[null,null,null,"Bill"]
[null,null,null,"Heath"]
[null,null,null,"Kimball"]
[null,null,null,"Office"]
[null,null,null,"Other"]
[null,null,null,"Zach"]
[]
[null,null,null,null,"rngTCE"]
[null,null,null,null,null,"TCE SP"]
[null,null,null,null,null,30]
[null,null,null,null,null,50]
[null,null,null,null,null,55]
[]
[]
[null,null,null,null,null,null,null,null,"rngTaxMillcreek"]
[null,null,null,null,null,null,null,null,null,"Millcreek Tax"]
[null,null,null,null,null,null,null,null,null,{"$f":"0.0725","v":7.2499999999999995E-2}]
[]
[null,null,null,null,null,null,null,null,null,null,null,"rngFreight"]
[null,null,null,null,null,null,null,null,null,null,null,null,"Freight Charge"]
[null,null,null,null,null,null,null,null,null,null,null,null,0.01]